bitfinex-derivatives/quotes_SOLF0:USTF0_20241215
["timestamp","ask_amount","ask_price","bid_price","bid_amount"]
[1734269466080,2.8,219.82,219.74,5.44883007]
[1734269466081,2.2756,219.8,219.74,7.72493007]
[1734269466282,2.2756,219.8,219.75,5.05955309]
[1734269466477,2.2756,219.8,219.74,7.72493007]
[1734269466877,2.2756,219.8,219.75,5.06209076]
[1734269467075,2.8,219.82,219.75,2.276]
[1734269467076,5.0754,219.82,219.75,2.276]
[1734269467271,2.8,219.81,219.74,5.44883007]
[1734269467472,1.4327,219.88,219.75,5.0601344]
[1734269467674,2.8,219.87,219.76,8.37528604]
[1734269467976,2.8,219.87,219.77,8.37528604]
[1734269468182,2.8,219.87,219.78,5.0601344]
[1734269468382,2.8,219.87,219.74,5.44883007]
[1734269468679,2.8,219.87,219.75,10.87171767]
[1734269468983,2.8,219.87,219.76,8.37134897]
[1734269469181,2.8,219.87,219.77,8.37134897]
[1734269469374,2.8,219.87,219.78,5.05677637]
[1734269469575,2.8,219.87,219.74,5.44883007]
[1734269469779,2.8,219.87,219.75,10.87209595]
[1734269470079,2.275,219.86,219.79,2.2756]
[1734269470384,2.8,219.85,219.8,5.05743911]
[1734269470583,2.8,219.85,219.74,5.44883007]
[1734269470784,2.8,219.85,219.75,16.17718412]
[1734269470979,2.8,219.85,219.76,16.17718412]
[1734269471193,2.8,219.85,219.77,10.873217]
[1734269471384,2.8,219.85,219.78,8.37255574]
[1734269471678,4.2226,219.89,219.79,16.16901906]
[1734269471884,4.2226,219.89,219.8,8.37121299]
[1734269472086,4.2226,219.89,219.81,8.37121299]
[1734269472382,4.2226,219.89,219.76,1.4743]
[1734269472578,4.2226,219.89,219.77,16.16872218]
[1734269472774,2.2749,219.87,219.8,2.2755]
[1734269472975,2.2749,219.87,219.81,5.05466535]
[1734269473183,2.2749,219.87,219.8,2.2755]
[1734269473184,2.2749,219.87,219.82,5.05466535]
[1734269473486,6.4973,219.89,219.76,7.73847128]
[1734269473786,6.4973,219.89,219.77,16.17430352]
[1734269473980,6.4973,219.89,219.83,2.2752]
[1734269474581,6.4973,219.89,219.76,26.53098514]
[1734269474782,2.8,219.89,219.77,21.00141704]
[1734269474984,2.8,219.89,219.78,16.17683838]
[1734269475186,2.8,219.89,219.79,16.17683838]
[1734269475489,2.8,219.89,219.84,2.275]
[1734269476081,5.0745,219.9,219.84,2.275]
[1734269476289,5.0745,219.9,219.85,2.275]
[1734269476290,2.8,219.9,219.85,2.275]
[1734269477587,2.8,219.9,219.82,2.2753]
[1734269477785,2.8,219.9,219.76,10.53847128]
[1734269477986,2.8,219.9,219.77,16.20532411]
[1734269478287,2.2749,219.86,219.8,2.2754]
[1734269478481,2.8,219.9,219.81,5.06649632]
[1734269478788,2.8,219.9,219.76,4.2743]
[1734269478789,2.8,219.9,219.82,5.07091918]
[1734269478982,2.8,219.9,219.76,10.53847128]
[1734269479188,2.8,219.9,219.77,16.21828088]
[1734269479387,2.8,219.9,219.78,11.15264483]
[1734269479589,2.8,219.9,219.79,16.22617144]
[1734269479882,2.8,219.9,219.8,10.90564538]
[1734269480082,2.8,219.9,219.73,1.4723]
[1734269480285,2.2755,219.8,219.74,18.5159056]
[1734269480490,2.66,219.81,219.75,8.40489262]
[1734269480681,2.66,219.81,219.76,5.07709769]
[1734269480882,2.66,219.81,219.76,5.46278814]
[1734269481688,2.66,219.81,219.73,1.4723]
[1734269481889,2.66,219.81,219.74,5.08375095]
[1734269482183,2.66,219.81,219.71,2.2764]
[1734269482386,2.66,219.81,219.72,10.93411002]
[1734269482591,1.444,219.8,219.73,8.41853417]
[1734269482796,1.444,219.8,219.74,5.08490865]
[1734269483085,1.444,219.8,219.71,7.67252879]
[1734269483291,1.444,219.8,219.72,10.92992252]
[1734269483592,2.276,219.76,219.68,0.26991]
[1734269483790,2.276,219.76,219.69,8.42245728]
[1734269483990,2.66,219.75,219.7,5.08754189]
[1734269484187,2.66,219.75,219.68,0.26991]
[1734269484390,2.66,219.75,219.69,10.69338737]
[1734269484588,2.66,219.75,219.7,5.08411557]
[1734269484789,2.66,219.75,219.69,2.2766]
[1734269484990,2.66,219.75,219.7,10.61786589]
[1734269485190,2.66,219.75,219.7,5.53285608]
[1734269485387,2.66,219.75,219.68,0.26991]
[1734269485589,2.66,219.75,219.69,8.41710956]
[1734269485795,2.66,219.75,219.68,0.26991]
[1734269485989,2.66,219.75,219.7,5.08473971]
[1734269486195,2.66,219.75,219.68,0.26991]
[1734269486391,2.2763,219.73,219.69,5.08437922]
[1734269486591,2.2763,219.73,219.68,0.26991]
[1734269486795,2.2763,219.73,219.69,5.0846542]
[1734269486994,2.2763,219.73,219.68,0.26991]
[1734269487696,2.66,219.75,219.68,0.26991]
[1734269488087,2.2764,219.72,219.68,0.26991]
[1734269488295,2.66,219.75,219.68,0.26991]
[1734269489492,2.66,219.75,219.69,2.2766]
[1734269489693,1.5027,219.79,219.68,0.26991]
[1734269489900,2.66,219.78,219.69,5.08303719]
[1734269490092,2.2762,219.74,219.68,0.26991]
[1734269490290,2.66,219.73,219.68,0.26991]
[1734269490600,2.66,219.72,219.68,0.26991]
[1734269490791,1.5027,219.79,219.68,0.26991]
[1734269490792,2.66,219.71,219.68,0.26991]
[1734269490998,2.66,219.7,219.68,0.26991]
[1734269491197,2.66,219.69,219.68,0.26991]
[1734269491393,2.66,219.7,219.68,0.26991]
[1734269493195,1.5027,219.79,219.68,0.26991]
[1734269493400,2.66,219.78,219.68,0.26991]
[1734269493895,4.9359,219.77,219.68,0.26991]
[1734269494497,1.444,219.8,219.68,0.26991]
[1734269494700,1.444,219.8,219.69,8.40102204]
[1734269495001,1.444,219.8,219.7,6.5863875]
[1734269495193,1.444,219.8,219.7,1.5116]
[1734269495799,2.66,219.79,219.7,1.5116]
[1734269496304,2.66,219.79,219.75,2.276]
[1734269497597,2.66,219.83,219.7,1.5116]
[1734269497802,2.66,219.83,219.71,10.91506241]
[1734269498101,2.66,219.84,219.72,11.06473266]
[1734269498301,2.66,219.84,219.73,5.07691446]
[1734269498507,2.66,219.84,219.72,2.66]
[1734269498708,2.66,219.84,219.73,5.07851923]
[1734269498907,2.66,219.84,219.74,5.07851923]
[1734269499105,2.66,219.84,219.72,2.66]
[1734269499309,2.66,219.84,219.73,8.41060034]
[1734269499505,4.1274,219.88,219.74,8.40994718]
[1734269499811,4.1274,219.88,219.75,5.08049908]
[1734269500000,1.4674,219.88,219.83,2.2752]
[1734269500205,2.66,219.87,219.83,2.2752]
[1734269501704,2.66,219.87,219.73,5.33308383]
[1734269502010,2.66,219.87,219.72,2.66]
[1734269502206,2.66,219.87,219.74,5.08601823]
[1734269502406,2.66,219.87,219.8,2.2755]
[1734269502706,2.66,219.87,219.78,5.37985038]
[1734269502907,2.66,219.87,219.79,5.08910308]
[1734269503211,2.66,219.87,219.78,5.37985038]
[1734269503414,2.66,219.87,219.79,5.08932496]
[1734269503607,2.66,219.87,219.78,5.37985038]
[1734269503807,1.4674,219.88,219.79,5.08875088]
[1734269504008,1.4674,219.88,219.79,1.408]
[1734269504215,2.66,219.89,219.84,2.275]
[1734269504416,2.66,219.89,219.79,1.408]
[1734269504713,2.66,219.89,219.8,5.0873425]
[1734269505016,2.66,219.89,219.79,1.408]
[1734269505204,2.66,219.89,219.8,5.08616356]
[1734269505409,2.2748,219.87,219.79,1.408]
[1734269505608,2.66,219.89,219.79,1.408]
[1734269505808,2.66,219.89,219.78,5.37985038]
[1734269506813,2.66,219.89,219.72,1.408]
[1734269507518,2.66,219.89,219.73,2.2762]
[1734269508019,2.66,219.89,219.74,2.2762]
[1734269508711,2.2754,219.82,219.74,2.2762]
[1734269509015,1.5104,219.93,219.74,5.41232773]
[1734269509216,2.275,219.86,219.74,5.41232773]
[1734269509419,2.66,219.85,219.74,5.41232773]
[1734269509620,2.66,219.85,219.75,5.08899787]
[1734269509814,4.935,219.85,219.78,2.2757]
[1734269511111,4.935,219.85,219.74,5.41232773]
[1734269511112,2.66,219.85,219.74,5.41232773]
[1734269511421,2.9753,219.84,219.68,2.84991]
[1734269511721,4.4458,219.84,219.7,5.42806638]
[1734269512116,2.276,219.76,219.7,5.42806638]
[1734269512316,2.58,219.75,219.7,5.42806638]
[1734269512516,2.58,219.76,219.7,5.42806638]
[1734269512721,2.58,219.76,219.71,2.2764]
[1734269512918,2.58,219.76,219.7,5.42806638]
[1734269514520,2.58,219.76,219.72,2.2763]
[1734269515415,2.58,219.76,219.68,0.26991]
[1734269515928,1.4271,219.75,219.68,0.26991]
[1734269516420,1.4271,219.75,219.68,2.54661]
[1734269516928,1.4271,219.75,219.68,8.0980427]
[1734269517528,1.4271,219.75,219.68,5.8213427]
[1734269518926,1.4271,219.75,219.7,2.2766]
[1734269520520,1.4271,219.75,219.71,2.2764]
[1734269521219,1.4271,219.75,219.69,2.2766]
[1734269521630,2.58,219.79,219.75,2.276]
[1734269521825,1.4862,219.83,219.69,1.5255]
[1734269522126,2.2755,219.81,219.7,16.29051213]
[1734269522320,2.2755,219.81,219.71,10.94896822]
[1734269522627,2.58,219.82,219.72,3.33853892]
[1734269522830,2.58,219.82,219.72,5.09328183]
[1734269523130,2.58,219.82,219.76,2.2759]
[1734269524023,4.8553,219.82,219.76,2.2759]
[1734269524619,1.4862,219.83,219.79,2.2756]
[1734269525726,1.4862,219.83,219.72,2.58]
[1734269525727,1.4862,219.83,219.78,2.2757]
[1734269527031,1.4862,219.83,219.68,5.8213427]
[1734269527234,1.4698,219.82,219.69,10.94510225]
[1734269527427,1.4698,219.82,219.7,8.42795647]
[1734269527632,1.4698,219.82,219.71,5.09098376]
[1734269527929,1.4698,219.82,219.68,5.8213427]
[1734269527930,2.2758,219.78,219.68,5.8213427]
[1734269528128,4.8558,219.78,219.69,8.43377225]
[1734269528326,4.8558,219.78,219.7,5.09440882]
[1734269528530,4.8558,219.78,219.68,5.8213427]
[1734269528726,4.8558,219.78,219.69,5.09499988]
[1734269528928,2.2759,219.77,219.7,7.37149988]
[1734269529131,2.2759,219.77,219.7,2.2765]
[1734269529739,2.58,219.78,219.68,5.8213427]
[1734269530038,2.58,219.78,219.69,8.43740246]
[1734269530228,2.58,219.78,219.7,5.09651585]
[1734269530429,2.58,219.78,219.68,5.8213427]
[1734269530430,2.58,219.78,219.71,5.09651585]
[1734269530631,2.58,219.78,219.68,5.8213427]
[1734269530832,2.58,219.78,219.69,8.43758742]
[1734269531033,2.58,219.78,219.7,5.09671543]
[1734269531337,2.58,219.78,219.68,5.8213427]
[1734269532431,2.2761,219.75,219.68,5.8213427]
[1734269532631,2.58,219.78,219.69,5.09645287]
[1734269532836,2.58,219.78,219.68,5.5514327]
[1734269533139,4.8558,219.78,219.71,2.2765]
[1734269533342,2.58,219.77,219.71,2.2765]
[1734269533730,4.8559,219.77,219.71,2.2765]
[1734269535136,4.8559,219.77,219.72,2.2764]
[1734269535346,2.58,219.77,219.72,2.2764]
[1734269535635,2.58,219.78,219.68,5.5514327]
[1734269535835,2.58,219.78,219.69,16.3000066]
[1734269536039,3.7615,219.83,219.7,16.3000066]
[1734269536242,2.58,219.82,219.76,2.2759]
[1734269536741,4.8553,219.82,219.76,2.2759]
[1734269537244,2.58,219.82,219.68,8.1314327]
[1734269537539,2.58,219.82,219.69,16.31368106]
[1734269537742,1.4862,219.83,219.7,16.31368106]
[1734269537931,1.4862,219.83,219.71,16.31368106]
[1734269538137,1.4862,219.83,219.72,16.31308167]
[1734269538332,1.4862,219.83,219.73,16.31308167]
[1734269538534,1.4862,219.83,219.68,8.1314327]
[1734269538535,1.4862,219.83,219.78,2.2757]
[1734269539041,3.7614,219.83,219.76,2.2759]
[1734269539240,1.4862,219.83,219.77,5.10104624]
[1734269539441,1.4862,219.83,219.68,8.1314327]
[1734269539658,2.2754,219.82,219.75,2.2761]
[1734269539833,1.4862,219.83,219.76,5.10173775]
[1734269540038,1.4862,219.83,219.75,2.2761]
[1734269540233,1.4862,219.83,219.76,5.10248546]
[1734269540542,1.4862,219.83,219.75,2.2761]
[1734269540840,1.4862,219.83,219.76,5.10286699]
[1734269541037,1.4862,219.83,219.75,2.2761]
[1734269541237,1.4862,219.83,219.76,5.10267344]
[1734269541444,1.4862,219.83,219.68,8.1314327]
[1734269541638,1.4862,219.83,219.69,16.31912819]
[1734269541832,1.4862,219.83,219.73,2.2762]
[1734269542141,1.4862,219.83,219.74,10.96854042]
[1734269542339,1.4862,219.83,219.75,10.96854042]
[1734269542541,1.4616,219.89,219.76,10.96722133]
[1734269542841,2.52,219.88,219.77,10.96722133]
[1734269543042,2.52,219.88,219.78,8.44594699]
[1734269543343,2.9467,219.94,219.75,2.52]
[1734269543344,2.52,219.87,219.79,8.44261238]
[1734269543642,2.52,219.89,219.8,5.10182963]
[1734269543834,2.52,219.88,219.81,5.10182963]
[1734269544030,2.52,219.88,219.76,1.5271]
[1734269544231,2.52,219.88,219.77,16.29453483]
[1734269544440,2.52,219.88,219.83,2.2752]
[1734269546338,2.2745,219.9,219.83,2.2752]
[1734269546539,2.52,219.89,219.83,2.2752]
[1734269546845,2.2745,219.9,219.83,2.2752]
[1734269548942,2.52,219.91,219.79,5.35587248]
[1734269549141,2.52,219.91,219.8,8.4260184]
[1734269549345,2.52,219.91,219.79,5.35587248]
[1734269549545,2.52,219.91,219.8,5.09095894]
[1734269549842,2.52,219.91,219.79,7.63147248]
[1734269550044,2.52,219.91,219.79,5.35587248]
[1734269550245,2.2748,219.87,219.81,2.2754]
[1734269550545,1.5375,219.92,219.81,2.2754]
[1734269550546,2.52,219.86,219.81,2.2754]
[1734269550749,2.52,219.85,219.81,2.2754]
[1734269551445,2.52,219.85,219.79,5.35587248]
[1734269551650,2.52,219.85,219.82,2.2753]
[1734269552346,2.52,219.85,219.81,2.2754]
[1734269553053,2.52,219.89,219.79,5.35587248]
[1734269553251,2.52,219.89,219.8,5.09099191]
[1734269553450,2.52,219.89,219.79,5.35587248]
[1734269553646,2.52,219.89,219.8,5.0905927]
[1734269553949,2.52,219.89,219.79,5.35587248]
[1734269554152,2.52,219.89,219.8,5.09053993]
[1734269554347,2.52,219.89,219.79,5.35587248]
[1734269554652,2.52,219.89,219.76,1.5271]
[1734269554853,2.2751,219.84,219.77,5.09313227]
[1734269555054,4.7951,219.84,219.76,1.5271]
[1734269555245,2.2752,219.83,219.77,7.37071822]
[1734269555450,2.2752,219.83,219.77,2.2758]
[1734269556750,4.7951,219.84,219.78,2.2757]
[1734269557353,2.2752,219.83,219.77,2.2758]
[1734269558253,2.52,219.84,219.76,1.5271]
[1734269558547,1.5375,219.92,219.77,8.43312124]
[1734269558749,2.52,219.91,219.78,8.43286774]
[1734269558957,2.52,219.91,219.79,5.09461017]
[1734269559158,2.52,219.91,219.76,1.5271]
[1734269559358,2.52,219.91,219.77,10.9506568]
[1734269559655,2.2749,219.87,219.81,2.2754]
[1734269559856,2.52,219.86,219.81,2.2754]
[1734269560155,4.7949,219.86,219.81,2.2754]
[1734269560654,2.2753,219.83,219.76,1.5271]
[1734269560854,2.2753,219.83,219.77,5.09345957]
[1734269561050,2.2753,219.83,219.76,1.5271]
[1734269561255,2.2753,219.83,219.77,5.09597231]
[1734269561452,2.2753,219.83,219.78,2.2757]
[1734269564054,2.2751,219.84,219.78,2.2757]
[1734269564254,2.2751,219.84,219.79,2.2756]
[1734269565359,2.9541,219.85,219.81,2.2754]
[1734269565658,1.4929,219.85,219.72,0.26324]
[1734269565858,1.4929,219.85,219.81,2.2754]
[1734269567953,4.0129,219.85,219.81,2.2754]
[1734269569959,1.4929,219.85,219.81,2.2754]
[1734269570152,2.4,219.88,219.76,2.4]
[1734269570356,2.4,219.88,219.77,17.76004593]
[1734269570658,2.4,219.88,219.78,16.30204593]
[1734269570959,2.4,219.88,219.79,16.30204593]
[1734269571159,2.4,219.88,219.8,10.95711551]
[1734269571360,2.4,219.88,219.81,10.95550415]
[1734269571559,2.4,219.88,219.82,5.09662632]
[1734269571761,2.4,219.88,219.83,5.09662632]
[1734269572061,2.4,219.88,219.77,1.458]
[1734269572261,2.4,219.88,219.78,16.28817623]
[1734269572462,2.4,219.88,219.79,16.28817623]
[1734269572658,2.4,219.88,219.8,10.947809]
[1734269572853,2.4,219.88,219.81,8.43010657]
[1734269573059,2.4,219.88,219.82,5.09237705]
[1734269573360,2.4,219.88,219.77,1.458]
[1734269573562,2.4,219.88,219.83,2.2752]
[1734269574860,2.4,219.88,219.77,1.458]
[1734269575059,2.4,219.88,219.78,16.28248826]
[1734269575262,2.4,219.88,219.79,13.76386243]
[1734269575461,2.4,219.88,219.79,5.09059881]
[1734269575664,2.4,219.88,219.72,2.66324]
[1734269575857,2.4,219.88,219.73,11.18981664]
[1734269576163,2.4,219.88,219.74,16.27927322]
[1734269576356,2.2751,219.85,219.77,2.2759]
[1734269576557,2.4,219.88,219.78,5.08945658]
[1734269576763,2.4,219.88,219.72,0.26324]
[1734269576960,2.4,219.88,219.73,16.28029587]
[1734269577161,2.4,219.88,219.74,16.28029587]
[1734269577359,2.4,219.88,219.75,16.28029587]
[1734269577560,2.4,219.88,219.76,10.94246653]
[1734269577757,2.4,219.88,219.77,8.42589789]
[1734269578056,2.275,219.85,219.78,7.36545456]
[1734269578256,2.275,219.85,219.79,5.08975456]
[1734269578556,2.275,219.85,219.79,2.2756]
[1734269579660,2.2751,219.84,219.79,2.2756]
[1734269579962,2.4,219.83,219.79,2.2756]
[1734269580166,2.2755,219.81,219.72,0.26324]
[1734269580368,2.4,219.83,219.73,16.29837408]
[1734269580662,2.4,219.83,219.74,16.29837408]
[1734269580964,2.4,219.83,219.72,0.26324]
[1734269580965,3.0052,219.82,219.72,0.26324]
[1734269581168,4.4709,219.82,219.72,0.26324]
[1734269581460,2.2763,219.73,219.72,0.26324]
[1734269581660,4.6763,219.73,219.72,0.26324]
[1734269582259,2.2764,219.72,219.66,2.277]
[1734269582657,2.4,219.73,219.63,1.4604]
[1734269582859,2.4,219.73,219.64,8.44540031]
[1734269583059,1.5011,219.72,219.65,5.10130665]
[1734269583254,1.5011,219.72,219.64,5.48122452]
[1734269584263,2.2765,219.71,219.65,2.2771]
[1734269585263,2.2766,219.7,219.63,3.7376]
[1734269585966,1.5011,219.72,219.49,25.05668514]
[1734269586159,1.4092,219.69,219.5,21.81654799]
[1734269586356,2.4,219.68,219.51,16.30794799]
[1734269586559,2.4,219.68,219.52,16.30794799]
[1734269586759,2.4,219.68,219.53,16.30794799]
[1734269586954,2.2772,219.65,219.5,3.1086]
[1734269587155,2.2772,219.65,219.54,5.09662135]
[1734269587363,2.2772,219.65,219.55,5.09662135]
[1734269587556,2.2772,219.65,219.5,3.1086]
[1734269587759,2.4,219.68,219.51,16.29027364]
[1734269587966,2.2771,219.65,219.52,16.29027364]
[1734269588166,2.2771,219.65,219.53,10.94900647]
[1734269588468,2.2771,219.65,219.54,5.09217004]
[1734269588659,2.2771,219.65,219.55,5.09217004]
[1734269588857,2.4,219.68,219.5,3.1086]
[1734269589060,2.4,219.68,219.51,10.94000762]
[1734269589257,2.4,219.68,219.52,5.08791908]
[1734269589457,2.4,219.68,219.5,3.1086]
[1734269589664,2.4,219.68,219.52,2.2784]
[1734269590271,2.4,219.68,219.48,2.2788]
[1734269590272,2.2781,219.56,219.48,2.2788]
[1734269590561,2.4,219.55,219.48,2.2788]
[1734269590762,4.6782,219.55,219.48,2.2788]
[1734269590966,4.6782,219.55,219.47,5.55257411]
[1734269591960,2.4,219.55,219.47,5.55257411]
[1734269592866,52.1,219.66,219.47,5.55257411]
[1734269593057,2.278,219.57,219.49,2.2787]
[1734269593259,2.4,219.56,219.49,2.2787]
[1734269593465,3.8188,219.56,219.49,2.2787]
[1734269594465,6.0969,219.56,219.49,2.2787]
[1734269595063,6.0969,219.56,219.47,5.55257411]
[1734269595262,3.8188,219.56,219.48,2.2788]
[1734269595568,3.8188,219.56,219.47,5.55257411]
[1734269595764,2.4,219.55,219.52,2.2784]
[1734269596265,2.4,219.55,219.5,2.2786]
[1734269597267,1.4188,219.56,219.47,5.55257411]
[1734269597476,2.4,219.56,219.47,5.55257411]
[1734269597862,2.4,219.56,219.54,2.2782]
[1734269598166,2.4,219.56,219.47,5.55257411]
[1734269598468,2.4,219.56,219.53,2.2783]
[1734269598669,2.4,219.56,219.47,5.55257411]
[1734269599467,2.4,219.56,219.51,2.2785]
[1734269600774,2.4,219.56,219.52,2.2784]
[1734269601370,2.36,219.55,219.54,2.2782]
[1734269601566,2.36,219.57,219.47,5.55257411]
[1734269601770,2.36,219.56,219.47,5.55257411]
[1734269601973,2.36,219.56,219.54,2.2782]
[1734269603073,2.2776,219.6,219.54,2.2782]
[1734269603274,2.36,219.59,219.54,2.2782]
[1734269603678,2.36,219.59,219.47,5.55257411]
[1734269604077,2.36,219.59,219.48,5.04403374]
[1734269604272,2.36,219.59,219.5,2.2786]
[1734269604478,2.36,219.59,219.47,5.55257411]
[1734269604879,2.36,219.59,219.54,2.2782]
[1734269605081,2.36,219.59,219.48,1.4055]
[1734269605477,2.36,219.59,219.55,2.2781]
[1734269605680,2.36,219.58,219.55,2.2781]
[1734269605883,2.36,219.59,219.55,2.2781]
[1734269608180,2.36,219.59,219.56,2.278]
[1734269609379,2.36,219.59,219.48,1.4055]
[1734269610580,2.2779,219.58,219.48,1.4055]
[1734269611685,2.36,219.59,219.48,1.4055]
[1734269611881,2.2779,219.57,219.48,1.4055]
[1734269612084,2.2779,219.57,219.51,2.2785]
[1734269613084,2.36,219.59,219.47,5.55257411]
[1734269613390,1.5019,219.56,219.5,2.2787]
[1734269613584,1.5019,219.56,219.47,5.55257411]
[1734269613785,2.36,219.55,219.54,2.2782]
[1734269613987,1.5019,219.62,219.47,5.55257411]
[1734269614284,1.5019,219.62,219.48,10.85749873]
[1734269614285,2.36,219.61,219.48,10.85749873]
[1734269614485,2.36,219.61,219.49,13.19486697]
[1734269614692,2.36,219.61,219.57,2.2779]
[1734269615492,2.36,219.61,219.55,2.278]
[1734269615985,2.36,219.61,219.5,1.5497]
[1734269616187,2.36,219.61,219.51,5.04869843]
[1734269616489,2.36,219.61,219.5,1.5497]
[1734269616689,2.36,219.61,219.51,5.05659279]
[1734269616885,2.36,219.61,219.52,5.05659279]
[1734269617085,2.36,219.61,219.57,2.2779]
[1734269617281,2.36,219.61,219.5,26.60638514]
[1734269617487,2.36,219.61,219.51,13.22614145]
[1734269617792,2.36,219.61,219.52,5.06147649]
[1734269617995,2.36,219.61,219.57,2.2778]
[1734269618385,2.36,219.61,219.51,6.26417128]
[1734269618586,2.36,219.63,219.61,2.2775]
[1734269619189,2.36,219.63,219.53,11.57927275]
[1734269619392,2.36,219.63,219.59,2.2777]
[1734269620399,2.36,219.63,219.61,2.2775]
[1734269620998,1.4645,219.74,219.55,6.26417128]
[1734269621199,2.36,219.73,219.56,21.07864377]
[1734269621400,2.36,219.73,219.57,16.23230226]
[1734269621697,1.4645,219.74,219.58,16.23230226]
[1734269621894,2.36,219.73,219.59,10.91008644]
[1734269622095,2.36,219.73,219.6,8.40037469]
[1734269622293,2.36,219.73,219.61,8.40037469]
[1734269622490,7.88577914,219.73,219.62,5.07412458]
[1734269622699,1.4645,219.74,219.63,5.07816906]
[1734269622700,2.36,219.72,219.63,5.07816906]
[1734269622897,2.36,219.73,219.64,8.40403912]
[1734269623195,2.36,219.73,219.6,6.26417128]
[1734269623196,2.36,219.73,219.65,10.91692977]
[1734269623498,2.36,219.73,219.66,8.40689105]
[1734269623697,2.36,219.73,219.67,7.35349681]
[1734269623902,2.36,219.73,219.68,5.07669681]
[1734269624092,2.36,219.73,219.61,3.7855]
[1734269624997,1.4491,219.74,219.61,3.7855]
[1734269625199,3.8548,219.75,219.61,3.7855]
[1734269625500,2.36,219.77,219.62,4.82778867]
[1734269625696,2.36,219.77,219.61,28.84218514]
[1734269625896,2.36,219.77,219.62,4.82732822]
[1734269626097,2.36,219.77,219.61,10.04967128]
[1734269626302,2.36,219.77,219.62,6.26417128]
[1734269626601,2.36,219.77,219.72,2.2763]
[1734269626994,2.9086,219.82,219.72,2.2763]
[1734269627194,2.36,219.81,219.67,2.36]
[1734269627797,2.36,219.8,219.69,2.2767]
[1734269629301,2.2759,219.78,219.7,2.2765]
[1734269629502,2.2759,219.78,219.67,2.36]
[1734269629808,2.36,219.8,219.61,1.4255]
[1734269630007,2.2759,219.77,219.7,2.2766]
[1734269630302,2.36,219.8,219.62,2.28]
[1734269630505,2.2757,219.78,219.62,2.28]
[1734269630707,2.36,219.8,219.62,2.28]
[1734269631300,2.36,219.8,219.61,1.4255]
[1734269631501,2.36,219.8,219.62,2.28]
[1734269631701,2.36,219.8,219.63,11.19580752]
[1734269631907,2.36,219.8,219.64,11.19580752]
[1734269632102,2.36,219.8,219.65,11.19580752]
[1734269632303,2.36,219.8,219.67,5.33692423]
[1734269632502,2.28,219.79,219.68,10.94716832]
[1734269632709,2.28,219.8,219.69,10.94716832]
[1734269633008,2.28,219.8,219.7,8.42924025]
[1734269633211,2.28,219.8,219.73,2.2763]
[1734269634509,4.5555,219.8,219.73,2.2763]
[1734269634707,2.28,219.8,219.71,2.2764]
[1734269635003,2.2762,219.74,219.67,5.33692423]
[1734269635204,2.2762,219.74,219.67,7.61372423]
[1734269636512,2.2763,219.73,219.67,7.61372423]
[1734269637408,2.28,219.75,219.67,5.33692423]
[1734269637910,5.184,219.82,219.75,2.2761]
[1734269638115,2.28,219.81,219.75,2.2761]
[1734269638409,2.28,219.81,219.7,2.28]
[1734269639310,2.2757,219.79,219.7,2.28]
[1734269639512,2.28,219.81,219.69,1.4967]
[1734269640013,2.28,219.81,219.7,2.2765]
[1734269640417,2.2759,219.77,219.71,2.2765]
[1734269640616,2.28,219.81,219.71,2.2765]